Cogmind - Beta 14 @@@ ROGUE MODE // 2024.10.20 @ 21:20:46 Player: NextToZero Result: Destroyed by G-67 Veteran with Plasma Rifle Performance ------------- Evolutions (7) 3500 Regions Visited (13) 2600 Robots Destroyed (56) 280 Value Destroyed (2045) 2045 Prototype IDs (6) 120 Alien Tech Used (0) 0 Bonus (700) 700 TOTAL SCORE: 9245 Bonus ------- Entered Garrisons 200 Entered DSFs 500 Cogmind --------- Core Integrity 0/1300 Matter 7/300 Energy 66/100 System Corruption 16% Temperature Cool (0) Movement Core (50) Location -3/Research Parts ------- > --- POWER (2) -------- (None) > --- PROPULSION (5) --- (None) > --- UTILITY (8) ------ Experimental Signal Interpreter > --- WEAPON (6) ------- (None) > --- INVENTORY (5) ---- Light Particle Reactor Advanced Launcher Guidance Computer Quantum Capacitor Authchip [R/Combat] Peak State ------------ > --- POWER ------------ Improved Deuterium Engine Antimatter Reactor > --- PROPULSION ------- Light Treads Heavy Treads Cooled Aerolev Unit > --- UTILITY ---------- Advanced Heat Sink Improved Cooling System Compact Battery Improved Light Armor Plating Improved Shield Generator > --- WEAPON ----------- High-powered Shock Rifle High-powered Shock Rifle Advanced Assault Cannon Advanced Assault Cannon > --- INVENTORY -------- Authchip [R/Combat] Phase Cannon Advanced Assault Cannon Advanced Datajack Powered Hammer [Rating: 69] Favorites ----------- Power Improved Deuterium Engine Engine Improved Deuterium Engine Power Core Light Nuclear Core Reactor Antimatter Reactor Propulsion Armored Wheel Treads Heavy Treads Leg Myomer Leg Wheel Armored Wheel Hover Unit Cooled Aerolev Unit Flight Unit Flight Unit Utility Compact Battery Device Improved Cooling System Storage Compact Battery Processor Signal Interpreter Hackware Hacking Suite Protection Core Shielding Weapon Cooled Particle Cannon Energy Gun High-powered Shock Rifle Energy Cannon Cooled Particle Cannon Ballistic Gun Heavy Machine Gun Ballistic Cannon Advanced Assault Cannon Launcher Mini Grenade Launcher Special Weapon Welding Torch Impact Weapon Powered Hammer Slashing Weapon Mining Claw Special Melee Weapon Improved Datajack Build | -11 -10 -10 -9 -8 -7 -6 -6 -6 -6 -5 -5 -4 -3 ------- Run | Yrd Mat Min Mat Mat Fac Fac Was Fac DSF Fac Gar Fac Res Slots Evolved 14 | . . . 2 2 2 2 . . . 2 . 2 2 Power 1 | . . . . . 1 . . . . . . . . Propulsion 3 | . . . . 1 . 1 . . . . . 1 . Utility 6 | . . . 2 . 1 . . . . 2 . 1 . Weapon 4 | . . . . 1 . 1 . . . . . . 2 Parts Attached 135 | 6 3 1 21 7 22 18 8 4 16 . 4 12 13 Power 17 | 1 . . 2 1 4 2 1 . 2 . . 2 2 Engine 12 | 1 . . 2 . 3 2 . . 2 . . 1 1 Core 3 | . . . . 1 1 . . . . . . 1 . Reactor 2 | . . . . . . . 1 . . . . . 1 Propulsion 26 | 2 . 1 6 1 1 4 1 1 3 . . 3 3 Treads 3 | . . 1 . . . . 1 . 1 . . . . Leg 4 | . . . . . . . . . 2 . . 1 1 Wheel 14 | 2 . . 4 1 1 4 . . . . . 2 . Hover 3 | . . . . . . . . 1 . . . . 2 Flight 2 | . . . 2 . . . . . . . . . . Utility 36 | 1 3 . 3 1 9 5 4 . 3 . . 2 5 Device 16 | . 1 . . 1 3 2 4 . 2 . . 1 2 Storage 4 | 1 1 . . . 2 . . . . . . . . Processor 6 | . . . 1 . . 2 . . . . . 1 2 Hackware 1 | . . . . . 1 . . . . . . . . Protection 9 | . 1 . 2 . 3 1 . . 1 . . . 1 Artifact . | . . . . . . . . . . . . . . Weapon 56 | 2 . . 10 4 8 7 2 3 8 . 4 5 3 Energy Gun 8 | . . . 2 . . . . 3 2 . . 1 . Energy Cannon 13 | . . . 2 3 4 2 1 . 1 . . . . Ballistic Gun 9 | 2 . . 2 . 1 1 1 . . . . . 2 Ballistic Cannon 10 | . . . 1 . . . . . 4 . 2 3 . Launcher 2 | . . . 1 1 . . . . . . . . . Special Weapon 2 | . . . . . . . . . . . . 1 1 Impact Weapon 4 | . . . . . 1 2 . . . . 1 . . Slashing Weapon 2 | . . . 2 . . . . . . . . . . Piercing Weapon . | . . . . . . . . . . . . . . Special Melee Weapon 6 | . . . . . 2 2 . . 1 . 1 . . Unidentified Prototypes 6 | . . . . 1 1 1 . 1 . . . . 2 Parts Lost 58 | . . 5 6 1 2 1 5 . 13 . 9 8 8 Power 11 | . . 1 1 1 1 . 1 . 3 . . 1 2 Propulsion 16 | . . 2 3 . . 1 1 . 3 . 2 3 1 Utility 15 | . . . 2 . 1 . 2 . 4 . 2 . 4 Weapon 16 | . . 2 . . . . 1 . 3 . 5 4 1 Highest Loss Streak 10 | . . 5 3 1 1 1 3 . 10 . 9 5 6 To Critical Strikes . | . . . . . . . . . . . . . . Average Slot Usage (%) 69 | . 90 93 64 87 96 99 81 64 75 29 16 12 23 Engine 6 | . 14 12 4 2 8 12 3 . 5 . . . 1 Treads 1 | . . 2 1 . . . 4 6 9 . . . . Wheel 12 | . 28 24 4 27 22 26 13 . . . . . . Device 7 | . 4 14 4 . 7 11 13 20 17 5 1 1 2 Storage 5 | . 14 14 9 . 7 6 6 6 6 5 2 . . Processor 3 | . . . 2 9 7 4 . . . . . . 9 Protection 7 | . 1 . 15 18 11 9 8 . 3 . . . 1 Energy Gun 1 | . . . 1 . . . . 10 5 . . 2 . Energy Cannon 9 | . . . 1 16 19 20 17 3 2 5 . . . Ballistic Gun 2 | . 28 26 1 4 . . 5 6 . . . . 1 Ballistic Cannon 2 | . . . 4 . . . . . 12 . . 4 . Impact Weapon 1 | . . . . . 1 3 . . . . . . . Peak Build Rating 69 | 6 8 8 11 31 42 57 68 63 69 24 30 23 58 Average Rating 33 | 4 6 7 7 21 37 55 56 55 55 24 14 15 33 On Entrance 22 | . 6 8 4 11 31 42 54 47 62 24 24 . 5 Naked Turns 36 | . . . . . . . . . . . 24 12 . Heaviest Build 61 | 11 17 17 23 31 49 56 61 42 61 11 12 18 31 Greatest Support 90 | 26 26 26 24 36 36 56 70 70 90 32 32 25 28 Greatest Overweight (x) 7 | . . 4 7 . 1 1 1 . 4 . . 4 1 Average Overweight (x) . | . . . 1 . . . . . . . . . . Largest Inventory Capacity 10 | 8 10 10 10 5 5 5 5 5 5 5 5 5 5 Average Capacity 5 | 7 9 10 9 5 5 5 5 5 5 5 5 5 5 Most Carried 10 | 4 10 10 10 5 5 5 5 5 5 5 4 5 5 Average Carried 4 | 1 3 9 7 4 4 4 3 3 4 5 2 4 4 Final Capacity 10 | 8 10 10 5 5 5 5 5 5 5 5 5 5 5 Final Carried 10 | 1 10 9 5 5 5 4 3 4 5 5 1 5 5 Class Distribution -------------------- 47% | Mutant 18% | Scavenger-Tank 13% | Tank 8% | Skirmisher 5% | Scavenger-Mutant 3% | Scavenger-Gunner Dominant Class ---------------- Mutant | -10/Materials Mutant | -10/Mines Mutant | -9/Materials Tank | -8/Materials Scavenger-Tank | -7/Factory Skirmisher | -6/Factory Scavenger-Tank | -6/Waste Scavenger-Gunner | -6/Factory Scavenger-Tank | -6/DSF Scavenger-Tank | -5/Factory Mutant | -5/Garrison Mutant | -4/Factory Mutant | -3/Research Resources | -11 -10 -10 -9 -8 -7 -6 -6 -6 -6 -5 -5 -4 -3 ----------- Run | Yrd Mat Min Mat Mat Fac Fac Was Fac DSF Fac Gar Fac Res Matter Collected 1836 | 240 64 27 164 108 333 340 125 . 162 . 47 226 . Remotely . | . . . . . . . . . . . . . . Salvage Created 2630 | . 94 . 143 149 333 518 668 . 296 . 76 258 95 Parts 134 | . 7 . 11 13 20 22 10 . 19 . 1 14 17 Haulers Intercepted 1 | . 1 . . . . . . . . . . . . Recyclers Shooed 3 | . . . 1 1 . . . . . . . 1 . Parts Field Recycled . | . . . . . . . . . . . . . . Retrieved Matter . | . . . . . . . . . . . . . . Parts Self-Destructed . | . . . . . . . . . . . . . . Prevented . | . . . . . . . . . . . . . . Kills | -11 -10 -10 -9 -8 -7 -6 -6 -6 -6 -5 -5 -4 -3 ------- Run | Yrd Mat Min Mat Mat Fac Fac Was Fac DSF Fac Gar Fac Res Combat Hostiles Destroyed 42 | . 1 . 8 6 4 7 3 . 8 . 2 2 1 Melee 3 | . . . 3 . . . . . . . . . . Guns 9 | . 1 . 1 . . 1 . . 5 . . . 1 Cannons 21 | . . . 2 3 4 5 3 . 3 . 1 . . AOE 7 | . . . 2 3 . . . . . . . 2 . Classes Destroyed 15 | . 2 . 3 . 3 2 1 . 2 . 1 1 . Worker 5 | . . . 1 2 . . . . . . . . 2 Builder 3 | . . . . . . . . . . . . 2 1 Tunneler 1 | . . . . . 1 . . . . . . . . Hauler 1 | . 1 . . . . . . . . . . . . Recycler 3 | . . . . . 1 1 . . . . . 1 . Mechanic 1 | . . . . . 1 . . . . . . . . Swarmer 11 | . . . 4 3 . . . . 3 . 1 . . Grunt 11 | . 1 . 1 1 2 4 . . 2 . . . . Sentry 9 | . . . 3 2 2 1 . . 1 . . . . Specialist 1 | . . . . . . . . . 1 . . . . Hunter 1 | . . . . . . 1 . . . . . . . Programmer 4 | . . . . . . 1 . . . . . 2 1 Heavy 1 | . . . . . . . . . 1 . . . . Compactor 3 | . . . . . . . 3 . . . . . . Striker 1 | . . . . . . . . . . . 1 . . Best Kill Streak 6 | . 1 . 4 6 3 3 1 . 4 . 2 3 4 Combat Bots Only 4 | . 1 . 4 4 2 2 1 . 4 . 2 2 1 Max Kills in Single Turn 3 | . 1 . 1 3 1 1 1 . 1 . 1 2 1 Gunslinging . | . . . . . . . . . . . . . . Exploded 2 | . . . 1 2 . . . . . . . 2 . Melee 1 | . . . 1 . . . . . . . . . . Uniques/NPCs Destroyed . | . . . . . . . . . . . . . . Combat | -11 -10 -10 -9 -8 -7 -6 -6 -6 -6 -5 -5 -4 -3 -------- Run | Yrd Mat Min Mat Mat Fac Fac Was Fac DSF Fac Gar Fac Res Hostile Shots Fired 941 | . 4 26 76 26 68 76 3 . 181 . 170 123 188 Missed 318 | . 2 8 24 5 22 24 . . 58 . 61 42 72 Damage Taken 11569 | . 23 605 754 372 493 814 122 . 2258 . 1846 1826 2456 Core 3887 | . . 150 205 35 97 59 . . 230 . 840 953 1318 Absorbed by Shields 124 | . . . . . . . . . 124 . . . . Redirected to Shielding 60 | . . . 39 7 14 . . . . . . . . Regen/Repaired (Parts) 87 | . . . . . 87 . . . . . . . . Core Remaining (%) 58 | 100 . 40 48 93 86 . . . 66 . 16 17 . Volleys Fired 169 | 1 5 . 25 11 15 15 13 . 25 . 7 30 22 Largest 4 | 2 2 . 2 3 3 4 4 . 4 . 1 2 1 Hottest 300 | 40 40 . 84 124 270 300 300 . 253 . 85 141 38 Shots Fired 360 | 2 10 . 40 28 44 47 49 . 79 . 7 32 22 Gun 108 | 2 10 . 5 9 3 2 10 . 17 . . 28 22 Cannon 232 | . . . 19 15 41 45 39 . 62 . 7 4 . Launcher 20 | . . . 16 4 . . . . . . . . . Special . | . . . . . . . . . . . . . . Kinetic 134 | 2 10 . 16 9 3 2 10 . 51 . 5 4 22 Thermal 184 | . . . 3 15 41 45 39 . 11 . 2 28 . Explosive 20 | . . . 16 4 . . . . . . . . . Electromagnetic 22 | . . . 5 . . . . . 17 . . . . Robot Hit Streak 10 | . 3 . 10 10 8 8 6 . 9 . 1 9 6 Robot Miss Streak 9 | 2 3 . 5 3 7 5 1 . 5 . 9 4 3 Penetration Max 1 | . . . . . . . . . . . . . 1 Secondary Targets . | . . . . . . . . . . . . . . Shots Hit Robots 216 | . 6 . 33 19 21 33 35 . 39 . 5 10 15 Core Hits 87 | . 4 . 16 13 7 10 8 . 13 . 1 7 8 Critical Kills . | . . . . . . . . . . . . . . Critical Parts Destroyed 2 | . . . . . . 1 . . . . 1 . . Critical Strikes 4 | . . . . . . 1 . . 2 . 1 . . Blast 2 | . . . . . . . . . 2 . . . . Smash 2 | . . . . . . 1 . . . . 1 . . Melee Attacks 34 | . . . 11 . 3 15 . . 1 . 4 . . Impact 7 | . . . . . 1 3 . . . . 3 . . Slashing 11 | . . . 11 . . . . . . . . . . Piercing . | . . . . . . . . . . . . . . Sneak Attacks 15 | . . . 3 . 2 9 . . 1 . . . . Combat Hostiles 1 | . . . . . . . . . 1 . . . . Follow-up Attacks . | . . . . . . . . . . . . . . Damage Inflicted 7250 | 6 53 . 803 637 775 1007 1593 . 1054 . 175 460 687 Guns 1535 | 6 53 . 68 43 42 18 188 . 257 . . 206 654 Cannons 4489 | . . . 189 282 733 939 1405 . 797 . 85 59 . Explosions 836 | . . . 329 312 . . . . . . . 195 . Melee 352 | . . . 212 . . 50 . . . . 90 . . Ramming 38 | . . . 5 . . . . . . . . . 33 Kinetic 2113 | 6 53 . 168 43 42 18 188 . 797 . 85 59 654 Thermal 3781 | . . . 21 282 733 939 1405 . . . . 401 . Explosive 641 | . . . 329 312 . . . . . . . . . Electromagnetic 325 | . . . 68 . . . . . 257 . . . . Impact 140 | . . . . . . 50 . . . . 90 . . Slashing 212 | . . . 212 . . . . . . . . . . Piercing . | . . . . . . . . . . . . . . Highest Corruption 16 | . . . . . . . . . 3 . . . 16 Average Corruption 8 | . . . . . . . . . 2 . . . 11 Corruption Purged . | . . . . . . . . . . . . . . Corruption Blocked . | . . . . . . . . . . . . . . Effects 11 | . . . . . . . . . 3 . . . 8 Message Errors 2 | . . . . . . . . . . . . . 2 Heat Flow Errors 1 | . . . . . . . . . 1 . . . . Energy Discharges 1 | . . . . . . . . . 1 . . . . Parts Rejected 3 | . . . . . . . . . . . . . 3 Data Loss (minor) 1 | . . . . . . . . . 1 . . . . Misdirections 3 | . . . . . . . . . . . . . 3 Overload Shots 70 | . . . . . 17 28 25 . . . . . . Effects 5 | . . . . . 1 1 3 . . . . . . Energy Bleed 2 | . . . . . . . 2 . . . . . . Heat Surge 1 | . . . . . 1 . . . . . . . . Short Circuit 2 | . . . . . . 1 1 . . . . . . Overflow Damage 305 | . . . 36 27 47 60 . . 2 . 41 92 . Projectiles 78 | . . . . 6 47 10 . . 2 . . 13 . Explosions 116 | . . . 16 21 . . . . . . . 79 . Melee 111 | . . . 20 . . 50 . . . . 41 . . Knockbacks 6 | . . . . . . . . . 3 . 2 . 1 Impact 2 | . . . . . . . . . . . 1 . 1 Kinetic 4 | . . . . . . . . . 3 . 1 . . Secondary . | . . . . . . . . . . . . . . Self-Inflicted Damage 575 | . . . 195 61 . . . . . . . 310 9 Shots 13 | . . . 8 2 . . . . . . . 3 . Rammed 7 | . . . 2 . . . . . . . . . 5 Targets Rammed 16 | . . . 2 . . . . . . . . . 14 Kicked 9 | . . . . . . . . . . . . . 9 Crushed . | . . . . . . . . . . . . . . Highest Temperature 605 | . 6 . 24 209 349 605 470 . 254 . 8 48 3 Average Temperature 129 | . 6 . 12 55 192 158 212 . 111 . 4 14 3 Received Heat Transfer 2197 | . 12 20 129 153 222 243 . . 561 . 219 207 431 Effects 19 | . . . . . 4 9 6 . . . . . . Shutdowns 5 | . . . . . 1 2 2 . . . . . . Energy Bleed 1 | . . . . . . . 1 . . . . . . Interference 5 | . . . . . 3 . 2 . . . . . . Matter Decay 1 | . . . . . . 1 . . . . . . . Short Circuit 3 | . . . . . . 2 1 . . . . . . Damage (major) 4 | . . . . . . 4 . . . . . . . Siege Activations . | . . . . . . . . . . . . . . Robots Corrupted 2 | . . . . . . 1 . . . . 1 . . Combat Hostiles 2 | . . . . . . 1 . . . . 1 . . Parts Fried 2 | . . . . . . . . . . . 2 . . Impact Corruptions 3 | . . . . . . 2 . . . . 1 . . Robots Melted . | . . . . . . . . . . . . . . Combat Hostiles . | . . . . . . . . . . . . . . Parts Melted 3 | . . . . . . 1 2 . . . . . . Heat Transferred 4074 | . . . 37 444 807 970 1420 . . . . 396 . Parts Sabotaged . | . . . . . . . . . . . . . . Parts Stolen . | . . . . . . . . . . . . . . Parts Stripped . | . . . . . . . . . . . . . . Power Chain Reactions . | . . . . . . . . . . . . . . Alert | -11 -10 -10 -9 -8 -7 -6 -6 -6 -6 -5 -5 -4 -3 ------- Run | Yrd Mat Min Mat Mat Fac Fac Was Fac DSF Fac Gar Fac Res Peak Influence 370 | . 27 10 274 370 313 184 27 . 285 149 154 269 202 Initial 168 | . . 10 . 86 168 67 26 . 3 149 114 80 141 Average 111 | . 10 7 136 245 196 92 6 . 119 149 115 71 161 Maximum Alert Level 1 | . . . 1 1 1 . . . 1 . . 1 1 Low Security (%) 84 | 100 100 100 79 23 57 100 100 100 76 100 100 97 96 Level 1 15 | . . . 20 76 42 . . . 23 . . 2 3 Level 2 . | . . . . . . . . . . . . . . Level 3 . | . . . . . . . . . . . . . . Level 4 . | . . . . . . . . . . . . . . Level 5 . | . . . . . . . . . . . . . . High Security . | . . . . . . . . . . . . . . Max Security . | . . . . . . . . . . . . . . Sterilizations 1 | . . . . . . . . . 1 . . . . Squads Dispatched 14 | . . . 1 1 2 3 . . 1 . . 4 2 Investigation 6 | . . . 1 . 2 . . . . . . 2 1 Extermination 2 | . . . . . . 1 . . . . . 1 . Reinforcement 6 | . . . . 1 . 2 . . 1 . . 1 1 Assault . | . . . . . . . . . . . . . . Garrison . | . . . . . . . . . . . . . . Intercept . | . . . . . . . . . . . . . . Searches Triggered . | . . . . . . . . . . . . . . Construction Impeded 1 | . . . . . . . . . . . . 1 . Haulers Reinforced . | . . . . . . . . . . . . . . Active Scanning Responses . | . . . . . . . . . . . . . . Cargo Convoy Interrupts . | . . . . . . . . . . . . . . Stealth | -11 -10 -10 -9 -8 -7 -6 -6 -6 -6 -5 -5 -4 -3 --------- Run | Yrd Mat Min Mat Mat Fac Fac Was Fac DSF Fac Gar Fac Res Distress Signals 1 | . . . . 1 . . . . . . . . . Communications Jammed . | . . . . . . . . . . . . . . Distress Signals . | . . . . . . . . . . . . . . Times Spotted 169 | . 4 18 15 11 5 28 6 . 23 . 23 17 19 Peak Tracking Total 18 | . 3 16 4 6 2 10 3 . 5 . 18 7 13 Tactical Retreats 20 | . . . 3 1 . 3 . . 6 . 2 3 2 Traps | -11 -10 -10 -9 -8 -7 -6 -6 -6 -6 -5 -5 -4 -3 ------- Run | Yrd Mat Min Mat Mat Fac Fac Was Fac DSF Fac Gar Fac Res Traps Triggered 4 | . . . . . 1 1 . . 1 . . 1 . Indirectly . | . . . . . . . . . . . . . . Trap Hack Attempts . | . . . . . . . . . . . . . . Triggered . | . . . . . . . . . . . . . . Disarmed . | . . . . . . . . . . . . . . Reprogrammed . | . . . . . . . . . . . . . . Reused . | . . . . . . . . . . . . . . Traps Extracted . | . . . . . . . . . . . . . . Installed . | . . . . . . . . . . . . . . Triggered . | . . . . . . . . . . . . . . Machines | -11 -10 -10 -9 -8 -7 -6 -6 -6 -6 -5 -5 -4 -3 ---------- Run | Yrd Mat Min Mat Mat Fac Fac Was Fac DSF Fac Gar Fac Res Machines Disabled 14 | . . . 3 1 . . . . 1 . . 7 2 Max in Single Turn 5 | . . . 1 1 . . . . 1 . . 5 1 Machines Repaired . | . . . . . . . . . . . . . . Machines Dismantled . | . . . . . . . . . . . . . . Machines Sabotaged . | . . . . . . . . . . . . . . Overloaded Fab Kills . | . . . . . . . . . . . . . . Hacking | -11 -10 -10 -9 -8 -7 -6 -6 -6 -6 -5 -5 -4 -3 --------- Run | Yrd Mat Min Mat Mat Fac Fac Was Fac DSF Fac Gar Fac Res Machines Accessed 24 | . 1 . 5 . 6 4 . 1 . 1 . 5 1 Terminals 14 | . 1 . 3 . 4 3 . 1 . . . 2 . Fabricators 1 | . . . . . . . . . . . . 1 . Repair Stations 2 | . . . . . 1 1 . . . . . . . Recycling Units 3 | . . . . . 1 . . . . . . 1 1 Scanalyzers 3 | . . . 2 . . . . . . . . 1 . Garrison Access 1 | . . . . . . . . . . 1 . . . Total Hacks 50 | . 1 . 17 . 13 5 . 1 . 1 . 9 3 Successful 29 | . 1 . 11 . 7 1 . 1 . 1 . 4 3 Failed 21 | . . . 6 . 6 4 . . . . . 5 . Catastrophic 3 | . . . . . . 2 . . . . . 1 . Database Lockouts . | . . . . . . . . . . . . . . Manual . | . . . . . . . . . . . . . . Terminals 30 | . 1 . 13 . 7 4 . 1 . . . 4 . Fabricators 2 | . . . . . . . . . . . . 2 . Repair Stations 5 | . . . . . 4 1 . . . . . . . Recycling Units 7 | . . . . . 2 . . . . . . 2 3 Scanalyzers 5 | . . . 4 . . . . . . . . 1 . Garrison Access 1 | . . . . . . . . . . 1 . . . Terminal Hacks 16 | . 1 . 7 . 4 1 . 1 . . . 2 . Record 2 | . . . 1 . . 1 . . . . . . . Open DSF 5 | . . . . . 3 . . 1 . . . 1 . Emergency Access Points 2 | . . . 2 . . . . . . . . . . Alert Level 4 | . . . 2 . 1 . . . . . . 1 . Locate Traps 2 | . 1 . 1 . . . . . . . . . . Recall Investigation 1 | . . . 1 . . . . . . . . . . Fabricator Hacks 2 | . . . . . . . . . . . . 2 . Load Schematic 1 | . . . . . . . . . . . . 1 . Build 1 | . . . . . . . . . . . . 1 . Repair Station Hacks 3 | . . . . . 3 . . . . . . . . Scan Component 2 | . . . . . 2 . . . . . . . . Repair 1 | . . . . . 1 . . . . . . . . Recycling Unit Hacks 3 | . . . . . . . . . . . . . 3 Report Inventory 1 | . . . . . . . . . . . . . 1 Retrieve Matter 1 | . . . . . . . . . . . . . 1 Retrieve Components 1 | . . . . . . . . . . . . . 1 Scanalyzer 4 | . . . 4 . . . . . . . . . . Insert Component 2 | . . . 2 . . . . . . . . . . Analyze 2 | . . . 2 . . . . . . . . . . Garrison Access Hacks 1 | . . . . . . . . . . 1 . . . Unlock Access 1 | . . . . . . . . . . 1 . . . Unauthorized Hacks . | . . . . . . . . . . . . . . Terminals . | . . . . . . . . . . . . . . Fabricators . | . . . . . . . . . . . . . . Repair Stations . | . . . . . . . . . . . . . . Recycling Units . | . . . . . . . . . . . . . . Scanalyzers . | . . . . . . . . . . . . . . Garrison Access . | . . . . . . . . . . . . . . Data Cores Recovered . | . . . . . . . . . . . . . . Used . | . . . . . . . . . . . . . . Hacking Detections 18 | . 1 . 4 . 4 4 . . . . . 4 1 Full Trace Events 5 | . . . 1 . 1 . . . . . . 2 1 Feedback Events . | . . . . . . . . . . . . . . Feedback Blocked . | . . . . . . . . . . . . . . Robot Schematics Acquired . | . . . . . . . . . . . . . . Robots Built . | . . . . . . . . . . . . . . Authchips . | . . . . . . . . . . . . . . Time . | . . . . . . . . . . . . . . Total Robot Build Rating . | . . . . . . . . . . . . . . Part Schematics Acquired 2 | . . . 2 . . . . . . . . . . Parts Built 2 | . . . . . . . . . . . . 2 . Authchips . | . . . . . . . . . . . . . . Time 62 | . . . . . . . . . . . . 62 . Total Part Build Rating 4 | . . . . . . . . . . . . 4 . Parts Repaired 1 | . . . . . 1 . . . . . . . . Time 32 | . . . . . 32 . . . . . . . . Parts Recycled . | . . . . . . . . . . . . . . Recycled Matter . | . . . . . . . . . . . . . . Retrieved Matter . | . . . . . . . . . . . . . . Retrieved Components 3 | . . . . . . . . . . . . . 3 Parts Scanalyzed 2 | . . . 2 . . . . . . . . . . Part Schematics Acquired 2 | . . . 2 . . . . . . . . . . Parts Damaged . | . . . . . . . . . . . . . . Bothacking | -11 -10 -10 -9 -8 -7 -6 -6 -6 -6 -5 -5 -4 -3 ------------ Run | Yrd Mat Min Mat Mat Fac Fac Was Fac DSF Fac Gar Fac Res Used RIF Installer . | . . . . . . . . . . . . . . Robots Hacked 9 | . . . . . 1 7 . . . . 1 . . Non-combat 8 | . . . . . 1 7 . . . . . . . Combat 1 | . . . . . . . . . . . 1 . . Robot Hacks Applied 13 | . . . . . 2 10 . . . . 1 . . parse_system 2 | . . . . . . 1 . . . . 1 . . no_distress 5 | . . . . . 1 4 . . . . . . . find_chute 3 | . . . . . 1 2 . . . . . . . find_recycling 2 | . . . . . . 2 . . . . . . . find_station 1 | . . . . . . 1 . . . . . . . Relay Couplers Released . | . . . . . . . . . . . . . . Fabnet Peak Effective % . | . . . . . . . . . . . . . . Robots Rewired . | . . . . . . . . . . . . . . Allies Hacked . | . . . . . . . . . . . . . . Hacks Repelled . | . . . . . . . . . . . . . . Allies | -11 -10 -10 -9 -8 -7 -6 -6 -6 -6 -5 -5 -4 -3 -------- Run | Yrd Mat Min Mat Mat Fac Fac Was Fac DSF Fac Gar Fac Res Total Allies 1 | . . . . . . . 1 . . . . . . Largest Group 1 | . . . . . . . 1 . . . . . . Highest-Rated Group 31 | . . . . . . . 31 . . . . . . Highest-Rated Ally 31 | . . . . . . . 31 . . . . . . Total Orders . | . . . . . . . . . . . . . . Ally Attacks 7 | . . . . . . . 7 . . . . . . Total Damage 108 | . . . . . . . 108 . . . . . . Kills . | . . . . . . . . . . . . . . Allies Corrupted . | . . . . . . . . . . . . . . Allies Melted . | . . . . . . . . . . . . . . Intel | -11 -10 -10 -9 -8 -7 -6 -6 -6 -6 -5 -5 -4 -3 ------- Run | Yrd Mat Min Mat Mat Fac Fac Was Fac DSF Fac Gar Fac Res Robot Analysis Total . | . . . . . . . . . . . . . . Derelict Logs Recovered . | . . . . . . . . . . . . . . Drone Launches 4 | . . . . . . . . . . . . . 4 Drone Recoveries 3 | . . . . . . . . . . . . . 3 Exploration | -11 -10 -10 -9 -8 -7 -6 -6 -6 -6 -5 -5 -4 -3 ------------- Run | Yrd Mat Min Mat Mat Fac Fac Was Fac DSF Fac Gar Fac Res Turns Passed 4330 | 53 131 73 546 198 685 858 280 117 346 9 113 683 238 Spaces Moved 3056 | 45 114 73 272 167 547 559 178 68 137 7 99 598 192 Core 395 | 8 . 1 69 . . . . . 8 . 47 201 61 Treads 301 | . . 7 47 . . . 70 68 109 . . . . Legs 475 | . . . . . . . . . 20 7 52 393 3 Wheels 1707 | 37 114 65 106 167 547 559 108 . . . . 4 . Hover 128 | . . . . . . . . . . . . . 128 Flight 50 | . . . 50 . . . . . . . . . . Fastest Speed 37 | 50 90 90 37 90 90 92 92 160 120 120 50 50 50 Average Speed 106 | 82 90 99 146 90 98 101 124 160 164 120 86 98 76 Slowest Speed 400 | 90 90 250 400 90 105 111 160 160 320 120 120 250 110 Overloaded Moves . | . . . . . . . . . . . . . . Propulsion Burnouts . | . . . . . . . . . . . . . . Robots Hopped . | . . . . . . . . . . . . . . Cave-ins Triggered . | . . . . . . . . . . . . . . Exploration Rate (%) 27 | 4 33 21 28 25 14 18 79 2 88 . 33 10 4 Regions Visited 13 Branch Regions 1 Pre-discovered Areas . | . . . . . . . . . . . . . . Known Exits Taken 5 | . . . 1 1 1 . . 1 . 1 . . . Unknown Exits Taken 4 | 1 1 1 . . . . . . . . . 1 . Scrap Searched . | . . . . . . . . . . . . . . Spaces Dug 3 | . . . . . 1 2 . . . . . . . Terrain Destroyed 196 | . . . 72 27 11 22 7 . 7 . . 47 3 Melee 3 | . . . . . 1 2 . . . . . . . Projectile 49 | . . . 1 1 10 20 7 . 7 . . . 3 AOE 144 | . . . 71 26 . . . . . . . 47 . Terrain Rammed . | . . . . . . . . . . . . . . Walls Destroyed . | . . . . . . . . . . . . . . Machines Disabled . | . . . . . . . . . . . . . . Actions | -11 -10 -10 -9 -8 -7 -6 -6 -6 -6 -5 -5 -4 -3 --------- Run | Yrd Mat Min Mat Mat Fac Fac Was Fac DSF Fac Gar Fac Res Total 3798 | 58 134 73 359 192 657 811 206 77 199 7 113 656 256 Wait 266 | . . . 3 . 46 187 . . 11 . . 9 10 Move 3045 | 44 113 72 271 166 546 559 177 67 136 7 98 597 192 Hop . | . . . . . . . . . . . . . . Pick Up 65 | 7 11 . 11 4 8 6 4 4 2 . . 6 2 Fast Attach 67 | . . . 12 4 13 4 1 1 13 . . 8 11 Attach 49 | 6 3 1 8 3 3 7 5 3 . . 4 4 2 Detach 11 | . 1 . 4 . 1 2 . 1 1 . . 1 . Swap 19 | . . . 1 . 6 7 2 . 3 . . . . Drop 57 | . 1 . 11 4 16 9 4 1 7 . . 1 3 Fire 169 | 1 5 . 25 11 15 15 13 . 25 . 7 30 22 Melee 34 | . . . 11 . 3 15 . . 1 . 4 . . Ram 7 | . . . 2 . . . . . . . . . 5 Kick 9 | . . . . . . . . . . . . . 9 Crush . | . . . . . . . . . . . . . . Escape Stasis . | . . . . . . . . . . . . . . Rewire . | . . . . . . . . . . . . . . Trap . | . . . . . . . . . . . . . . Miscellaneous . | . . . . . . . . . . . . . . Route ------- -11/Scrapyard -10/Materials -10/Mines -9/Materials -8/Materials -7/Factory -6/Factory -6/Waste -6/Factory -6/DSF -5/Factory -5/Garrison -4/Factory -3/Research History --------- Turn | Location | Event 5 | -11/Scrapyard | Discovered new exit (range 16) 54 | -11/Scrapyard | Entered Materials 176 | -10/Materials | Discovered new exit (range 10) 185 | -10/Materials | Entered Mines 207 | -10/Mines | Discovered new exit (range 7) 221 | -10/Mines | Assembled infested the area 248 | -10/Mines | Core integrity fell below 50% 258 | -10/Mines | Entered Materials 258 | -9/Materials | Evolved 2 slots: Utility x2 284 | -9/Materials | Lost 5 parts (1p2n2w) 318 | -9/Materials | Build established: Mutant 734 | -9/Materials | Core integrity fell below 50% 746 | -9/Materials | Lost 3 parts (2n1u) 792 | -9/Materials | Discovered new exit (range 12) 803 | -9/Materials | Identified exit to Materials 804 | -9/Materials | Entered another Materials area 804 | -8/Materials | Evolved 2 slots: Propulsion x1, Weapon x1 983 | -8/Materials | Discovered new exit (range 12) 997 | -8/Materials | Identified exit to Factory 1002 | -8/Materials | Entered Factory 1002 | -7/Factory | Evolved 2 slots: Power x1, Utility x1 1146 | -7/Factory | Build established: Tank 1441 | -7/Factory | Repaired Arm. Wheel 1656 | -7/Factory | Discovered new exit (range 12) 1667 | -7/Factory | Identified exit to Factory 1687 | -7/Factory | Entered another Factory area 1687 | -6/Factory | Evolved 2 slots: Propulsion x1, Weapon x1 2206 | -6/Factory | Build established: Skirmisher 2545 | -6/Factory | Manually triggered Chute Trap 2545 | -6/Factory | Sucked down chute 2545 | -6/Factory | Entered Waste 2546 | -6/Waste | Met a frightened Derelict 2567 | -6/Waste | Spotted C-40 Crusher 2577 | -6/Waste | Destroyed C-40 Crusher 2583 | -6/Waste | Spotted C-40 Crusher 2602 | -6/Waste | Destroyed C-40 Crusher 2607 | -6/Waste | Spotted C-40 Crusher 2653 | -6/Waste | Crushed by Compactor (1 part destroyed, 1 dropped) 2655 | -6/Waste | Destroyed C-40 Crusher 2668 | -6/Waste | Spotted C-40 Crusher 2671 | -6/Waste | Spotted C-40 Crusher 2687 | -6/Waste | Crushed by Compactor (1 part destroyed, 1 dropped) 2758 | -6/Waste | Spotted C-40 Crusher 2772 | -6/Waste | Crushed by Compactor (1 part destroyed, 2 dropped) 2801 | -6/Waste | Discovered new exit (range 16) 2803 | -6/Waste | Lost 3 parts (1n1u1w) 2825 | -6/Waste | Entered Factory 2942 | -6/Factory | Identified exit to DSF 2942 | -6/Factory | Entered DSF 2981 | -6/DSF | Additional patrols routed to DSF 3218 | -6/DSF | Sterilization system engaged 3238 | -6/DSF | Ambient heat levels rising (+10) 3253 | -6/DSF | Ambient heat levels rising (+10) 3263 | -6/DSF | Lost 10 parts (2p3n2u3w) 3266 | -6/DSF | Discovered new exit (range 15) 3268 | -6/DSF | Ambient heat levels rising (+10) 3283 | -6/DSF | Ambient heat levels rising (+10) 3288 | -6/DSF | Entered Factory 3288 | -5/Factory | Evolved 2 slots: Utility x2 3297 | -5/Factory | Identified exit to Garrison 3297 | -5/Factory | Entered Garrison 3317 | -5/Garrison | Spotted Striker 3342 | -5/Garrison | Destroyed Striker 3370 | -5/Garrison | Spotted B-75 Beast 3381 | -5/Garrison | Triggered checkpoint 3388 | -5/Garrison | Core integrity fell below 50% 3402 | -5/Garrison | Discovered new exit (range 15) 3408 | -5/Garrison | Core integrity fell below 20% 3410 | -5/Garrison | Entered Factory 3410 | -4/Factory | Evolved 2 slots: Propulsion x1, Utility x1 3411 | -4/Factory | Identified exit to DSF 3417 | -4/Factory | Lost 9 parts (2n2u5w) 3524 | -4/Factory | Build established: Mutant 3595 | -4/Factory | Found Quantum Capacitor 3647 | -4/Factory | Spotted B-86 Titan 4000 | -4/Factory | Core integrity fell below 50% 4013 | -4/Factory | Lost 5 parts (1p2n2w) 4058 | -4/Factory | Fabricated Plasma Cutter? 4085 | -4/Factory | Discovered new exit (range 16) 4092 | -4/Factory | Core integrity fell below 20% 4093 | -4/Factory | Entered Research 4093 | -3/Research | Evolved 2 slots: Weapon x2 4114 | -3/Research | Lost 3 parts (1n2w) 4197 | -3/Research | Found Prototype Processor 4197 | -3/Research | Identified Exp. Signal Interpreter 4200 | -3/Research | Found Exp. Signal Interpreter 4220 | -3/Research | System corruption reached 10% 4279 | -3/Research | Lost 6 parts (2p1n2u1w) 4320 | -3/Research | Core integrity fell below 50% 4328 | -3/Research | Core integrity fell below 20% 4331 | -3/Research | Destroyed by G-67 Veteran with Plasma Rifle Last Messages --------------- 04292_ System corrupted: Welding Torch rejected. 04292_ Slug penetrates G-67 Veteran. 04301_ Acquired Helical Railgun. 04304_ Slug penetrates G-73 Enforcer. 04304_ Slug penetrates O-24 Administrator. 04307_ System corrupted: Adv. Reaction Control System rejected. 04307_ Drone Bay destroyed. 04308_ Meson Extractor disabled. 04313_ Dropped Gyrokinetic Inverter. 04313_ Discarded Faulty Exp. Signal Interpreter. 04316_ Dropped Helical Railgun. 04323_ ASD#DWUF1YKUYL%&J EOW M0ZWN Y 04323_ Penetrated by Slug. 04323_ Slug penetrates Meson Extractor. 04324_ Critical hit (Burn: +50). 04326_ Terrain Scan Processor destroyed. 04326_ M-36 Artificer fits Backup Laser VII on P-80 Master. 04327_ Critical hit (Burn: +50). 04328_ M-36 Artificer fits Backup Power VII on P-80 Master. 04330_ M-36 Artificer repairs Imp. Antigrav System. Map ----- +----------------------------------------------------+ | ??????????????????????##???#??# # # | | ??????????????????? #?##????#?# ### ####/###### | | ???????????????????????????#?## !#?# # | | ????????????????????? ????????# #?# # = | | ???????????????????#??? ??#???##/###?# # """"" | | ????????????????#???? ??? ?????# #??## # """"" | | ???????????????? ???????? ######+#####+# """"" | | ??????????????? ?? #? ??# # | | ??????????????????????? ??# # | | ???????????????? ???? ??? #=* "" """ #####/##### | | ???????????????? ??? ? # [="" """ #?## # | | ????????????????????? ?#% """ """ #?##!! # | | ????????????????????# /%%% #??#!= # | | ??????????????????? # ? # #??# = # | | ????????????????????# ? # """ #?## !# | | ?????????? ??? ?####### Y """ #??# # | | ?????????? ??? ??????#"" """ #??####"### | | ????????? ??#???## #?????# #?? | | ????????? ?????#?# % #?????#%#?? | | ???????? ############t############# #?? | | ???????? =! #?? | | ?????????" ##### ##? | | ?????????" | m ##??# #?? | | ?????????" Ygp !%= #??## #?? | | ?????????#################g### * ##########? ? | | ????????????????#???# g@ # ##########? ?? | | ????????????????#???# ggg ggg# # #? ?? | | ?????????????????#??# """ g# # #? ?? | | ????????????????????# """ # # """ #? ?? | | ???????????????????## ="" # # """ #?#+#?? | | ?????????????????#??# [ # + """ #??? ?? | | ????????????????????# g # # #?????? | | ????????????????????# # # #? ???? | | ????????????????#??## ! # # #?????? | | ???????????????????########### # #?? ??? | | ???????????????????# # ##########?????? | | ???????????????????# # #?????#????????? | | ????????????????#??# """ + #?#??#??????? ?? | | ?????????????????#?# """" # ####?##????????? | | ?????????????#?????# """" # #???#???#??????? | | ?????????????????### """ # ###????????????? | | ????????????#?????## ######???#??#???????? | | ??????????????#????# #?#?#????#??????????? | | ????????????????#??###################?????#?????? | | ??????????????????????????#?#??#????#????????#???? | | ????????????????#????????????#????????#??????????? | | ?????????????????????#????????#?###??#???????????? | | ??????????????????????#???#????#?#???????????????? | | ???????????????????????????#???????????#?????????? | | ???????????????????????????????#?????????????????? | +----------------------------------------------------+ Best States ------------- Heat Dissipation 110 Coolant Potential 65 Energy Generation 34 Energy Capacity 715 Matter Stores 300 Matter Capacity 300 Sight Range 16 Robot Scan Range 16 Terrain Scan Range 16 Terrain Scan Density 85 ECM Strength 2 Armor Coverage 375 Core Shielding 20 Evasion (%) 63 Targeting Accuracy 6 Recoil Reduction 3 Particle Charging 20 Offensive Hacking 10 Authchip Count 1 Item Schematics ----------------- Weight Redist. System | -9/Materials | Scanalyzed Plasma Cutter | -9/Materials | Scanalyzed Robot Schematics ------------------ None Fabricated ------------ Plasma Cutter | x2 | -4/Factory Alien Tech Used ----------------- None Achievements -------------- Dangerous Findings Overkill Streaker Wheee! Challenges ------------ None Game ------ Seed DroneHardlightBlaster Manual? 0 Play Time 01:17:56 Cumulative 12.8 hours Start 2024.10.20 @ 16:04:51 End 2024.10.20 @ 21:20:46 Sessions 3 Manual Loads 0 Difficulty Rogue Special Mode None Game No. 21 Rogue 21 Adventurer 0 Explorer 0 Win Type - Total 0 Types 0/0/0/0/0/0/0/0/0 Lore% 10 Gallery% 24 Achievement% 20 Wizard Run 0 Options --------- Layout 0 ASCII 0 Keyboard 0 Movement Mouse Keybinds 0 Fullscreen 1 Font 36/Smallcaps Map View 38x25 Zoom Use 99% Tactical HUD 1 Map Filters NONE Filters NONE Steam 1 RUN: 57e8250c-4e96-4042-9361-ca0e6b27bebd